fUSD/lending_fUSD_20250216
["ID","MTS","AMOUNT","RATE_DAILY","PERIOD"]
[353232695,1739693446946,-500.0,0.00011041,2]
[353232696,1739693446957,-500.0,0.00011041,2]
[353232697,1739693446967,-842.56,0.00011041,2]
[353232698,1739693446979,-500.0,0.00011041,2]
[353232699,1739693446989,-500.0,0.00011041,2]
[353232700,1739693446998,-500.0,0.00011041,2]
[353232701,1739693447009,-500.0,0.00011041,2]
[353232702,1739693447018,-533.36,0.00011041,2]
[353232703,1739693447027,-500.0,0.00011041,2]
[353232704,1739693447037,-500.0,0.00011041,2]
[353232705,1739693447047,-629.12,0.00011041,2]
[353232706,1739693447057,-500.0,0.00011041,2]
[353232707,1739693447067,-500.0,0.00011041,2]
[353232708,1739693447078,-505.27997682,0.00011041,2]
[353232709,1739693447087,-505.84066179,0.00011041,2]
[353232710,1739693447097,-500.0,0.00011041,2]
[353232711,1739693447107,-500.0,0.00011041,2]
[353232712,1739693447117,-500.0,0.00011041,2]
[353232713,1739693447126,-500.0,0.00011041,2]
[353232714,1739693447136,-506.06828099,0.00011041,2]
[353232715,1739693447145,-500.0,0.00011041,2]
[353232716,1739693447155,-500.0,0.00011041,2]
[353232717,1739693447168,-500.0,0.00011041,2]
[353232718,1739693447181,-500.0,0.00011041,2]
[353232719,1739693447192,-377.30485489,0.00011041,2]
[353232720,1739693447201,-1940.01,0.00011041,2]
[353232721,1739693447211,-508.33,0.00011041,2]
[353232722,1739693447221,-688.54,0.00011041,2]
[353232723,1739693447230,-500.0,0.00011041,2]
[353232724,1739693447240,-500.0,0.00011041,2]
[353232725,1739693447251,-733.95,0.00011041,2]
[353232726,1739693447263,-500.0,0.00011041,2]
[353232727,1739693447272,-500.0,0.00011041,2]
[353232728,1739693447282,-500.0,0.00011041,2]
[353232729,1739693447291,-699.65,0.00011041,2]
[353232730,1739693447304,-500.0,0.00011041,2]
[353232731,1739693447313,-500.0,0.00011041,2]
[353232732,1739693447323,-500.0,0.00011041,2]
[353232733,1739693447332,-500.0,0.00011041,2]
[353232734,1739693447341,-500.0,0.00011041,2]
[353232735,1739693447351,-500.0,0.00011041,2]
[353232736,1739693447360,-503.82096937,0.00011041,2]
[353232737,1739693447369,-500.0,0.00011041,2]
[353232738,1739693447378,-500.0,0.00011041,2]
[353232739,1739693447387,-1010.83,0.00011041,2]
[353232740,1739693447397,-500.0,0.00011041,2]
[353232741,1739693447407,-500.0,0.00011041,2]
[353232742,1739693447416,-500.0,0.00011041,2]
[353232743,1739693447425,-500.0,0.00011041,2]
[353232744,1739693447435,-575.87,0.00011041,2]
[353232745,1739693447445,-610.37,0.00011041,2]
[353232746,1739693447454,-500.0,0.00011041,2]
[353232747,1739693447464,-708.75,0.00011041,2]
[353232748,1739693447473,-500.0,0.00011041,2]
[353232749,1739693447482,-1037.76,0.00011041,2]
[353232750,1739693447491,-389.8199739,0.00011041,2]
[353232751,1739693448021,-115.67976973,0.00011041,2]
[353232752,1739693448033,-500.0,0.00011041,2]
[353232753,1739693448042,-218.016069,0.00011041,2]
[353232754,1739693448054,-281.983931,0.00011041,2]
[353232755,1739693448064,-500.0,0.00011041,2]
[353232756,1739693448074,-500.0,0.00011041,2]
[353232757,1739693448083,-500.0,0.00011041,2]
[353232758,1739693448092,-506.7139245,0.00011041,2]
[353232759,1739693448102,-460.87796375,0.00011041,2]
[353232760,1739693448147,-501.15920408,0.00010958,2]
[353232761,1739693448157,-39.12203625,0.00011041,2]
[353232762,1739693448167,-500.0,0.00011041,2]
[353232763,1739693448180,-500.0,0.00011041,2]
[353232764,1739693448189,-500.0,0.00011041,2]
[353232765,1739693448199,-500.0,0.00011041,2]
[353232766,1739693448208,-571.28,0.00011041,2]
[353232767,1739693448218,-500.0,0.00011041,2]
[353232768,1739693448229,-500.0,0.00011041,2]
[353232769,1739693448239,-500.0,0.00011041,2]
[353232770,1739693448250,-500.0,0.00011041,2]
[353232771,1739693448260,-500.0,0.00011041,2]
[353232772,1739693448270,-500.0,0.00011041,2]
[353232773,1739693448280,-500.0,0.00011041,2]
[353232774,1739693448291,-572.24772307,0.00011041,2]
[353232775,1739693448302,-500.0,0.00011041,2]
[353232776,1739693448313,-500.0,0.00011041,2]
[353232777,1739693448323,-917.4,0.00011041,2]
[353232778,1739693448333,-504.80441597,0.00011041,2]
[353232779,1739693448343,-504.2961047,0.00011041,2]
[353232780,1739693448353,-1418.61,0.00011041,2]
[353232781,1739693448363,-500.0,0.00011041,2]
[353232782,1739693448372,-500.0,0.00011041,2]
[353232783,1739693448382,-500.0,0.00011041,2]
[353232784,1739693448391,-500.0,0.00011041,2]
[353232785,1739693448402,-500.0,0.00011041,2]
[353232786,1739693448411,-574.07,0.00011041,2]
[353232787,1739693448422,-274.58777174,0.00011041,2]
[353232788,1739693448432,-626.18710612,0.00011041,2]
[353232789,1739693448442,-587.40999492,0.00011041,2]
[353232790,1739693448452,-1235.91,0.00011041,2]
[353232791,1739693448463,-500.0,0.00011041,2]
[353232792,1739693448472,-500.0,0.00011041,2]
[353232793,1739693448488,-675.8,0.00011041,2]
[353232794,1739693448498,-500.0,0.00011041,2]
[353232795,1739693448509,-500.0,0.00011041,2]
[353232796,1739693448519,-639.66,0.00011041,2]
[353232797,1739693448530,-500.0,0.00011041,2]
[353232798,1739693448541,-500.0,0.00011041,2]
[353232799,1739693448552,-500.0,0.00011041,2]
[353232800,1739693448562,-500.0,0.00011041,2]
[353232801,1739693448572,-500.0,0.00011041,2]
[353232802,1739693448581,-663.58,0.00011041,2]
[353232803,1739693448591,-500.0,0.00011041,2]
[353232804,1739693448601,-500.0,0.00011041,2]
[353232805,1739693448611,-543.76,0.00011041,2]
[353232806,1739693448622,-500.0,0.00011041,2]
[353232807,1739693448632,-500.0,0.00011041,2]
[353232808,1739693448642,-583.87,0.00011041,2]
[353232809,1739693448652,-500.0,0.00011041,2]
[353232810,1739693448661,-500.0,0.00011041,2]
[353232811,1739693448671,-500.0,0.00011041,2]
[353232812,1739693448681,-500.0,0.00011041,2]
[353232813,1739693448691,-546.06,0.00011041,2]
[353232814,1739693448701,-500.0,0.00011041,2]
[353232815,1739693448710,-500.0,0.00011041,2]
[353232816,1739693448720,-500.0,0.00011041,2]
[353232817,1739693448730,-500.0,0.00011041,2]
[353232818,1739693448739,-500.0,0.00011041,2]
[353232819,1739693448750,-640.58,0.00011041,2]
[353232820,1739693448760,-500.0,0.00011041,2]
[353232821,1739693448769,-500.0,0.00011041,2]
[353232822,1739693448779,-376.55822504,0.00011041,2]
[353232823,1739693448793,-133.84012905,0.00011041,2]
[353232824,1739693448802,-500.0,0.00011041,2]
[353232825,1739693448812,-637.52634385,0.00011041,2]
[353232826,1739693448823,-249.3188525,0.00011041,2]
[353232827,1739693449333,-527.55520127,0.0001,2]
[353232828,1739693449350,-775.44479873,0.0001,2]
[353232829,1739693449361,-25.21910738,0.00010958,2]
[353232830,1739693449375,-1006.32089262,0.00010958,2]
[353232831,1739693449385,-500.0,0.00010958,2]
[353232832,1739693449396,-250.6811475,0.00011041,2]
[353232833,1739693449407,-516.82,0.00011041,2]
[353232834,1739693449418,-500.0,0.00011041,2]
[353232835,1739693449428,-500.0,0.00011041,2]
[353232836,1739693449438,-500.0,0.00011041,2]
[353232837,1739693449448,-500.0,0.00011041,2]
[353232838,1739693449459,-571.59,0.00011041,2]
[353232839,1739693449469,-500.0,0.00011041,2]
[353232840,1739693449480,-500.0,0.00011041,2]
[353232841,1739693449490,-500.0,0.00011041,2]
[353232842,1739693449500,-500.0,0.00011041,2]
[353232843,1739693449510,-500.0,0.00011041,2]
[353232844,1739693449522,-551.26,0.00011041,2]
[353232845,1739693449533,-500.0,0.00011041,2]
[353232846,1739693449543,-500.0,0.00011041,2]
[353232847,1739693449553,-500.0,0.00011041,2]
[353232848,1739693449564,-500.0,0.00011041,2]
[353232849,1739693449573,-500.0,0.00011041,2]
[353232850,1739693449583,-500.0,0.00011041,2]
[353232851,1739693449593,-500.0,0.00011041,2]
[353232852,1739693449604,-645.76,0.00011041,2]
[353232853,1739693449614,-555.99973217,0.00011041,2]
[353232854,1739693449623,-500.0,0.00011041,2]
[353232855,1739693449632,-512.2,0.00011041,2]
[353232856,1739693449643,-695.37,0.00011041,2]
[353232857,1739693449652,-500.0,0.00011041,2]
[353232858,1739693449662,-501.5924261,0.00011041,2]
[353232859,1739693449671,-500.0,0.00011041,2]
[353232860,1739693449681,-500.0,0.00011041,2]
[353232861,1739693449690,-500.0,0.00011041,2]
[353232862,1739693449700,-500.0,0.00011041,2]
[353232863,1739693449710,-500.0,0.00011041,2]
[353232864,1739693449720,-500.0,0.00011041,2]
[353232865,1739693449730,-500.0,0.00011041,2]
[353232866,1739693449740,-500.0,0.00011041,2]
[353232867,1739693449751,-500.0,0.00011041,2]
[353232868,1739693449761,-500.0,0.00011041,2]
[353232869,1739693449771,-500.0,0.00011041,2]
[353232870,1739693449780,-500.0,0.00011041,2]
[353232871,1739693449790,-500.0,0.00011041,2]
[353232872,1739693449800,-519.61,0.00011041,2]
[353232873,1739693449809,-679.91,0.00011041,2]
[353232874,1739693449818,-500.0,0.00011041,2]
[353232875,1739693449828,-500.0,0.00011041,2]
[353232876,1739693449838,-1111.22,0.00011041,2]
[353232877,1739693449847,-500.0,0.00011041,2]
[353232878,1739693449857,-715.04,0.00011041,2]
[353232879,1739693449868,-500.0,0.00011041,2]
[353232880,1739693449878,-500.0,0.00011041,2]
[353232881,1739693449887,-631.92,0.00011041,2]
[353232882,1739693449897,-53.91986041,0.00011041,2]
[353232883,1739693449910,-481.50013959,0.00011041,2]
[353232884,1739693449920,-500.0,0.00011041,2]
[353232885,1739693449928,-500.0,0.00011041,2]
[353232886,1739693449938,-500.0,0.00011041,2]
[353232887,1739693449947,-500.0,0.00011041,2]
[353232888,1739693449956,-500.0,0.00011041,2]
[353232889,1739693449966,-500.0,0.00011041,2]
[353232890,1739693449975,-517.98,0.00011041,2]
[353232891,1739693449984,-790.22,0.00011041,2]
[353232892,1739693449994,-500.0,0.00011041,2]
[353232893,1739693450003,-731.2,0.00011041,2]
[353232894,1739693450013,-500.0,0.00011041,2]
[353232895,1739693450022,-1362.45,0.00011041,2]
[353232896,1739693450032,-752.51,0.00011041,2]
[353232897,1739693450041,-522.12,0.00011041,2]
[353232898,1739693450050,-1497.13,0.00011041,2]
[353232899,1739693450060,-500.0,0.00011041,2]
[353232900,1739693450069,-842.77,0.00011041,2]
[353232901,1739693450079,-596.94343711,0.00011041,2]
[353232902,1739693450088,-500.0,0.00011041,2]
[353232903,1739693450098,-500.0,0.00011041,2]
[353232904,1739693450107,-500.0,0.00011041,2]
[353232905,1739693450117,-612.93,0.00011041,2]
[353232906,1739693450126,-785.52,0.00011041,2]
[353232907,1739693450136,-1748.41,0.00011041,2]
[353232908,1739693450145,-500.0,0.00011041,2]
[353232909,1739693450155,-644.19,0.00011041,2]
[353232910,1739693450165,-948.38,0.00011041,2]
[353232911,1739693450178,-500.0,0.00011041,2]
[353232912,1739693450188,-500.0,0.00011041,2]
[353232913,1739693450197,-1191.84,0.00011041,2]
[353232914,1739693450206,-500.0,0.00011041,2]
[353232915,1739693450215,-500.0,0.00011041,2]
[353232916,1739693450226,-500.0,0.00011041,2]
[353232917,1739693450235,-500.0,0.00011041,2]
[353232918,1739693450244,-500.0,0.00011041,2]
[353232919,1739693450256,-150.0,0.00011041,2]
[353232920,1739693450266,-500.0,0.00011041,2]
[353232921,1739693450275,-914.37,0.00011041,2]
[353232922,1739693450285,-1487.82,0.00011041,2]
[353232923,1739693450294,-500.0,0.00011041,2]
[353232924,1739693450304,-596.72,0.00011041,2]
[353232925,1739693450314,-500.0,0.00011041,2]
[353232926,1739693450323,-1458.87,0.00011041,2]
[353232927,1739693450332,-569.92,0.00011041,2]
[353232928,1739693450341,-870.86,0.00011041,2]
[353232929,1739693450351,-500.0,0.00011041,2]
[353232930,1739693450360,-500.0,0.00011041,2]
[353232931,1739693450370,-1274.68,0.00011041,2]
[353232932,1739693450384,-762.18,0.00011041,2]
[353232933,1739693450393,-500.0,0.00011041,2]
[353232934,1739693450404,-934.2,0.00011041,2]
[353232935,1739693450414,-500.0,0.00011041,2]
[353232936,1739693450423,-1627.75,0.00011041,2]
[353232937,1739693450433,-500.0,0.00011041,2]
[353232938,1739693450599,-500.0,0.00011041,2]
[353232939,1739693450635,-893.41,0.00011041,2]
[353232940,1739693450645,-801.66,0.00011041,2]
[353232941,1739693450655,-1473.94,0.00011041,2]
[353232942,1739693450664,-500.0,0.00011041,2]
[353232943,1739693450674,-1252.3,0.00011041,2]
[353232944,1739693450683,-500.0,0.00011041,2]
[353232945,1739693450694,-654.93,0.00011041,2]
[353232946,1739693450703,-500.0,0.00011041,2]
[353232947,1739693450713,-500.0,0.00011041,2]
[353232948,1739693450723,-500.0,0.00011041,2]
[353232949,1739693450732,-500.0,0.00011041,2]
[353232950,1739693450741,-2750.2964233,0.00011041,2]
[353232951,1739693450766,-331.07,0.00010958,2]
[353232952,1739693450800,-168.93,0.00010958,2]
[353232953,1739693450810,-232.51214624,0.00010958,2]
[353232954,1739693450832,-271.17251652,0.00010958,2]
[353232955,1739693450843,-95.4835767,0.00011041,2]
[353232956,1739693450852,-1930.43,0.00011041,2]
[353232957,1739693450861,-1075.83,0.00011041,2]
[353232958,1739693450871,-500.0,0.00011041,2]
[353232959,1739693450880,-553.30025708,0.00011041,2]
[353232960,1739693450889,-548.94,0.00011041,2]
[353232961,1739693450899,-1088.93,0.00011041,2]
[353232962,1739693450908,-706.27,0.00011041,2]
[353232963,1739693450918,-1059.89,0.00011041,2]
[353232964,1739693450928,-1271.66,0.00011041,2]
[353232965,1739693450937,-500.0,0.00011041,2]
[353232966,1739693450946,-1098.98,0.00011041,2]
[353232967,1739693450956,-500.0,0.00011041,2]
[353232968,1739693450966,-911.39,0.00011041,2]
[353232969,1739693450976,-500.0,0.00011041,2]
[353232970,1739693450986,-914.0,0.00011041,2]
[353232971,1739693450996,-843.66,0.00011041,2]
[353232972,1739693451004,-500.0,0.00011041,2]
[353232973,1739693451014,-1618.34,0.00011041,2]
[353232974,1739693451025,-2242.66,0.00011041,2]
[353232975,1739693451035,-1510.94,0.00011041,2]
[353232976,1739693451045,-500.0,0.00011041,2]
[353232977,1739693451054,-1232.19,0.00011041,2]
[353232978,1739693451064,-500.0,0.00011041,2]
[353232979,1739693451074,-187.99079773,0.00011041,2]
[353232980,1739693451084,-500.0,0.00011041,2]
[353232981,1739693451095,-738.69,0.00011041,2]
[353232982,1739693451105,-1873.03,0.00011041,2]
[353232983,1739693451114,-738.36,0.00011041,2]
[353232984,1739693451124,-500.0,0.00011041,2]
[353232985,1739693451134,-550.98,0.00011041,2]
[353232986,1739693451142,-150.0,0.00011041,2]
[353232987,1739693451152,-500.0,0.00011041,2]
[353232988,1739693451161,-1785.0,0.00011041,2]
[353232989,1739693451171,-1772.73,0.00011041,2]
[353232990,1739693451183,-644.38,0.00011041,2]
[353232991,1739693451193,-1414.42,0.00011041,2]
[353232992,1739693451202,-500.0,0.00011041,2]
[353232993,1739693451211,-500.0,0.00011041,2]
[353232994,1739693451220,-500.0,0.00011041,2]
[353232995,1739693451229,-500.0,0.00011041,2]
[353232996,1739693451238,-971.55,0.00011041,2]
[353232997,1739693451248,-500.0,0.00011041,2]
[353232998,1739693451257,-517.21,0.00011041,2]
[353232999,1739693451267,-1779.65,0.00011041,2]
[353233000,1739693451277,-616.51,0.00011041,2]
[353233001,1739693451287,-1764.2,0.00011041,2]
[353233002,1739693451296,-3098.6,0.00011041,2]
[353233003,1739693451305,-1025.81,0.00011041,2]
[353233004,1739693451315,-1699.9,0.00011041,2]
[353233005,1739693451324,-3613.38,0.00011041,2]
[353233006,1739693451333,-1678.0,0.00011041,2]
[353233007,1739693451343,-535.91,0.00011041,2]
[353233008,1739693451352,-505.17290212,0.00011041,2]
[353233009,1739693451361,-1152.22,0.00011041,2]
[353233010,1739693451372,-907.34,0.00011041,2]
[353233011,1739693451381,-500.0,0.00011041,2]
[353233012,1739693451391,-3037.62,0.00011041,2]
[353233013,1739693451401,-1912.24,0.00011041,2]
[353233014,1739693451410,-1045.48,0.00011041,2]
[353233015,1739693451419,-2072.12,0.00011041,2]
[353233016,1739693451429,-500.0,0.00011041,2]
[353233017,1739693451438,-1391.39,0.00011041,2]
[353233018,1739693451448,-1395.61,0.00011041,2]
[353233019,1739693451458,-500.0,0.00011041,2]
[353233020,1739693451467,-814.32,0.00011041,2]
[353233021,1739693451477,-513.00517946,0.00011041,2]
[353233022,1739693451486,-500.0,0.00011041,2]
[353233023,1739693451496,-500.0,0.00011041,2]
[353233024,1739693451506,-1554.3,0.00011041,2]
[353233025,1739693451515,-801.19,0.00011041,2]
[353233026,1739693451525,-500.0,0.00011041,2]
[353233027,1739693451535,-1173.12,0.00011041,2]
[353233028,1739693451544,-804.51,0.00011041,2]
[353233029,1739693451554,-1232.61,0.00011041,2]
[353233030,1739693451566,-743.71,0.00011041,2]
[353233031,1739693451575,-500.0,0.00011041,2]
[353233032,1739693451585,-1900.23,0.00011041,2]
[353233033,1739693451594,-2056.31,0.00011041,2]
[353233034,1739693451604,-500.0,0.00011041,2]
[353233035,1739693451613,-500.0,0.00011041,2]
[353233036,1739693451623,-500.0,0.00011041,2]
[353233037,1739693451632,-500.0,0.00011041,2]
[353233038,1739693451642,-505.5536046,0.00011041,2]
[353233039,1739693451651,-957.04,0.00011041,2]
[353233040,1739693451660,-500.0,0.00011041,2]
[353233041,1739693451669,-1146.85,0.00011041,2]
[353233042,1739693451679,-1550.6,0.00011041,2]
[353233043,1739693451688,-2373.51,0.00011041,2]
[353233044,1739693451698,-3912.64,0.00011041,2]
[353233045,1739693451707,-500.0,0.00011041,2]
[353233046,1739693451716,-1643.53,0.00011041,2]
[353233047,1739693451726,-1084.43,0.00011041,2]
[353233048,1739693451735,-5172.54,0.00011041,2]
[353233049,1739693451745,-1459.19,0.00011041,2]
[353233050,1739693451754,-500.0,0.00011041,2]
[353233051,1739693451763,-1758.63,0.00011041,2]
[353233052,1739693451773,-500.0,0.00011041,2]
[353233053,1739693451782,-500.0,0.00011041,2]
[353233054,1739693451792,-2056.22,0.00011041,2]
[353233055,1739693451802,-1267.31,0.00011041,2]
[353233056,1739693451811,-500.0,0.00011041,2]
[353233057,1739693451821,-981.99,0.00011041,2]
[353233058,1739693451830,-500.0,0.00011041,2]
[353233059,1739693451840,-500.0,0.00011041,2]
[353233060,1739693451849,-677.34,0.00011041,2]
[353233061,1739693451859,-500.0,0.00011041,2]
[353233062,1739693451868,-1754.09,0.00011041,2]
[353233063,1739693451877,-500.0,0.00011041,2]
[353233064,1739693451887,-1267.47,0.00011041,2]
[353233065,1739693451899,-500.0,0.00011041,2]
[353233066,1739693451909,-1913.38,0.00011041,2]
[353233067,1739693451919,-485.60377484,0.00011041,2]
[353233068,1739693451930,-712.96,0.00011041,2]
[353233069,1739693451940,-3004.31,0.00011041,2]
[353233070,1739693451951,-1092.38,0.00011041,2]
[353233071,1739693451962,-675.43,0.00011041,2]
[353233072,1739693451972,-500.0,0.00011041,2]
[353233073,1739693451983,-983.17,0.00011041,2]
[353233074,1739693451993,-500.0,0.00011041,2]
[353233075,1739693452003,-1277.4,0.00011041,2]
[353233076,1739693452013,-664.05,0.00011041,2]
[353233077,1739693452022,-990.09,0.00011041,2]
[353233078,1739693452031,-500.0,0.00011041,2]
[353233079,1739693452042,-500.0,0.00011041,2]
[353233080,1739693452052,-500.0,0.00011041,2]
[353233081,1739693452061,-999.6,0.00011041,2]
[353233082,1739693452071,-500.0,0.00011041,2]
[353233083,1739693452080,-500.0,0.00011041,2]
[353233084,1739693452089,-1898.72,0.00011041,2]
[353233085,1739693452099,-2997.14,0.00011041,2]
[353233086,1739693452108,-500.0,0.00011041,2]
[353233087,1739693452117,-500.0,0.00011041,2]
[353233088,1739693452126,-502.25,0.00011041,2]
[353233089,1739693452136,-500.0,0.00011041,2]
[353233090,1739693452145,-500.0,0.00011041,2]
[353233091,1739693452155,-500.0,0.00011041,2]
[353233092,1739693452164,-1417.68,0.00011041,2]
[353233093,1739693452176,-500.0,0.00011041,2]
[353233094,1739693452186,-868.14,0.00011041,2]
[353233095,1739693452195,-1565.59,0.00011041,2]
[353233096,1739693452204,-500.0,0.00011041,2]
[353233097,1739693452214,-3878.36,0.00011041,2]
[353233098,1739693452223,-613.95,0.00011041,2]
[353233099,1739693452232,-500.0,0.00011041,2]
[353233100,1739693452242,-1515.99,0.00011041,2]
[353233101,1739693452251,-623.81,0.00011041,2]
[353233102,1739693452260,-500.0,0.00011041,2]
[353233103,1739693452270,-600.1,0.00011041,2]
[353233104,1739693452279,-500.0,0.00011041,2]
[353233105,1739693452288,-545.31,0.00011041,2]
[353233106,1739693452298,-500.0,0.00011041,2]
[353233107,1739693452308,-1031.54,0.00011041,2]
[353233108,1739693452317,-150.0,0.00011064,2]
[353233109,1739693452327,-150.0,0.00011068,2]
[353233110,1739693452336,-877.1372323,0.00011068,2]
[353233111,1739693452345,-856.34157169,0.00011068,2]
[353233112,1739693452355,-1785.0,0.00011068,2]
[353233113,1739693452364,-150.0,0.00011096,2]
[353233114,1739693452374,-1785.0,0.00011096,2]
[353233115,1739693452383,-38285.85920573,0.00011099,2]
[353233116,1739693452393,-35733.78591509,0.00011099,2]
[353233117,1739693452402,-11288.23956584,0.00011099,2]
[353233118,1739693452468,-2730.99504985,0.00011099,2]
[353233119,1739693453266,-500.0,0.00010958,2]
[353233120,1739693453278,-59.25140233,0.00010958,2]
[353233121,1739693453289,-440.74859767,0.00010958,2]
[353233122,1739693453299,-500.0,0.00010958,2]
[353233123,1739693453308,-500.0,0.00010958,2]
[353233124,1739693453317,-335.45487738,0.00010958,2]
[353233125,1739693453330,-164.54512262,0.00010958,2]
[353233126,1739693453339,-637.77,0.00010958,2]
[353233127,1739693453350,-500.0,0.00010958,2]
[353233128,1739693453360,-500.0,0.00010958,2]
[353233129,1739693453371,-500.0,0.00010958,2]
[353233130,1739693453380,-555.74,0.00010959,2]
[353233131,1739693453389,-500.0,0.00011041,2]
[353233132,1739693453399,-3039.30360918,0.00011099,2]
[353233133,1739693453410,-9518.59284828,0.00011099,2]
[353233134,1739693453423,-25727.96274818,0.00011099,2]
[353233135,1739693453432,-3857.96438917,0.00011099,2]
[353233136,1739693453443,-1182.94805861,0.00011099,2]
[353233137,1739693453454,-3953.81927455,0.00011099,2]
[353233138,1739693453484,-500.0,0.00010958,2]
[353233139,1739693453493,-4336.0,0.00011099,2]
[353233140,1739693453504,-1747.37,0.00011099,2]
[353233141,1739693453519,-699.5899999,0.00011099,2]
[353233142,1739693453530,-424.49932413,0.00011099,2]
[353233143,1739693453550,-5512.36025304,0.00011099,2]
[353233144,1739693453561,-35733.78591509,0.00011099,2]
[353233145,1739693453570,-35733.78591509,0.00011099,2]
[353233146,1739693453579,-35733.78591509,0.00011099,2]
[353233147,1739693453589,-35733.78591509,0.00011099,2]
[353233148,1739693453598,-35733.78591509,0.00011099,2]
[353233149,1739693453607,-151.0,0.00011099,2]
[353233150,1739693453615,-151.0,0.00011099,2]
[353233151,1739693453624,-151.0,0.00011099,2]
[353233152,1739693453634,-151.0,0.00011099,2]
[353233153,1739693453645,-151.0,0.00011099,2]
[353233154,1739693453654,-151.0,0.00011099,2]
[353233155,1739693453663,-151.0,0.00011099,2]
[353233156,1739693453674,-151.0,0.00011099,2]
[353233157,1739693453683,-151.0,0.00011099,2]
[353233158,1739693453693,-171.45822614,0.00011099,2]
[353233159,1739693453702,-151.038542,0.00011099,2]
[353233160,1739693453711,-151.0,0.00011099,2]
[353233161,1739693453721,-205.0,0.000111,2]
[353233162,1739693453731,-3026.21458,0.000111,2]
[353233163,1739693453741,-500.0,0.00011123,2]
[353233164,1739693453753,-500.0,0.00011123,2]
[353233165,1739693453763,-262.22,0.00011123,2]
[353233166,1739693453772,-500.0,0.00011123,2]
[353233167,1739693453782,-500.0,0.00011123,2]
[353233168,1739693453791,-1688.32,0.00011123,2]
[353233169,1739693453801,-500.0,0.00011123,2]
[353233170,1739693453810,-500.0,0.00011123,2]
[353233171,1739693453820,-500.0,0.00011123,2]
[353233172,1739693453829,-396.16,0.00011123,2]
[353233173,1739693453839,-500.0,0.00011123,2]
[353233174,1739693453849,-500.0,0.00011123,2]
[353233175,1739693453859,-500.0,0.00011123,2]
[353233176,1739693453869,-500.0,0.00011123,2]
[353233177,1739693453878,-510.3,0.00011123,2]
[353233178,1739693453888,-500.0,0.00011123,2]
[353233179,1739693453897,-500.0,0.00011123,2]
[353233180,1739693453906,-500.0,0.00011123,2]
[353233181,1739693453915,-500.0,0.00011123,2]
[353233182,1739693453925,-500.0,0.00011123,2]
[353233183,1739693453935,-500.0,0.00011123,2]
[353233184,1739693453945,-500.0,0.00011123,2]
[353233185,1739693453955,-500.0,0.00011123,2]
[353233186,1739693453964,-309.22017268,0.00011123,2]
[353233187,1739693453974,-500.0,0.00011123,2]
[353233188,1739693453984,-500.0,0.00011123,2]
[353233189,1739693453994,-500.0,0.00011123,2]
[353233190,1739693454005,-500.0,0.00011123,2]
[353233191,1739693454015,-500.0,0.00011123,2]
[353233192,1739693454025,-384.22204034,0.00011123,2]
[353233193,1739693454034,-553.68,0.00011123,2]
[353233194,1739693454043,-500.0,0.00011123,2]